[Event "10th LCC FIDE Open 2018"]
[Site "London"]
[Date "2018.12.16"]
[Round "9"]
[White "Dauletova, Gulmira"]
[Black "Tozer, Philip A A"]
[Result "1-0"]
[ECO "C12"]
[WhiteElo "2261"]
[BlackElo "2137"]
[Annotator "NA"]
[PlyCount "59"]
[EventDate "2018.12.09"]
[EventType "swiss"]
[EventCountry "ENG"]
[SourceTitle "playchess.com"]
[Source "ChessBase"]
[SourceQuality "1"]
[TimeControl "40/5400+30:1800+30"]

1. e4 {[%emt 0:07:30]} e6 {[%emt 0:00:00]} 2. d4 {[%emt 0:00:19]} d5 {[%emt 0:00:00]} 3. Nc3 {[%emt 0:00:14]} Nf6 {[%emt 0:00:00]} 4. Bg5 {[%emt 0:00:21]} Bb4 {[%emt 0:00:00]} 5. e5 {[%emt 0:01:24]} h6 {[%emt 0:00:00]} 6. Bd2 {[%emt 0:01:39]} Bxc3 {[%emt 0:00:06]} 7. bxc3 {[%emt 0:00:29]} Ne4 {[%emt 0:00:05]} 8. Qg4 {[%emt 0:07:02]} Kf8 {[%emt 0:00:06]} 9. Nf3 {[%emt 0:03:43]} c5 {[%emt 0:00:38]} 10. Bd3 {[%emt 0:00:46]} Nxd2 {[%emt 0:00:07]} 11. Nxd2 {[%emt 0:00:28]} c4 {[%emt 0:03:03]} 12. Be2 {[%emt 0:00:02]} Nc6 {[%emt 0:01:56]} 13. h4 {[%emt 0:03:57]} Bd7 {[%emt 0:03:22]} 14. Rh3 {[%emt 0:07:57]} Ne7 {[%emt 0:04:05]} 15. Nf1 {[%emt 0:11:12]} Nf5 {[%emt 0:09:15]} 16. Qf4 {[%emt 0:14:10]} Qe7 {[%emt 0:14:39]} 17. Qh2 {[%emt 0:01:26]} h5 {[%emt 0:07:12]} 18. Bxh5 {[%emt 0:03:32]} Rxh5 {[%emt 0:05:36]} 19. g4 {[%emt 0:00:03]} Rxh4 {[%emt 0:10:14]} 20. gxf5 {[%emt 0:00:50]} Rxh3 {[%emt 0:00:35]} 21. Qxh3 {[%emt 0:00:02]} Ke8 {[%emt 0:15:04]} 22. Ne3 {[%emt 0:01:53]} f6 {[%emt 0:04:49]} 23. exf6 {[%emt 0:03:22]} Qxf6 {[%emt 0:01:10]} 24. Kd2 {[%emt 0:01:11]} Ke7 {[%emt 0:03:30]} 25. Rg1 {[%emt 0:04:37]} Kd6 {[%emt 0:02:20]} 26. Rg6 {[%emt 0:00:42]} Qe7 {[%emt 0:01:14]} 27. Qg3+ {[%emt 0:11:01]} Kc6 {[%emt 0:00:07]} 28. Ng4 {[%emt 0:00:24]} Kb5 {[%emt 0:07:20]} 29. Qc7 {[%emt 0:02:40]} Qd8 {[%emt 0:00:31]} 30. Qe5 {[%emt 0:00:04]} 1-0

[Event "10th LCC FIDE Open 2018"]
[Site "London"]
[Date "2018.12.16"]
[Round "9"]
[White "Tomaszewski, Kacper"]
[Black "Keely, Leo A"]
[Result "1-0"]
[ECO "E73"]
[WhiteElo "2259"]
[BlackElo "1964"]
[Annotator "NA"]
[PlyCount "143"]
[EventDate "2018.12.09"]
[EventType "swiss"]
[EventCountry "ENG"]
[SourceTitle "playchess.com"]
[Source "ChessBase"]
[SourceQuality "1"]
[TimeControl "40/5400+30:1800+30"]

1. d4 {[%emt 0:02:22]} Nf6 {[%emt 0:00:00]} 2. c4 {[%emt 0:00:09]} g6 {[%emt 0:00:11]} 3. Nc3 {[%emt 0:00:08]} Bg7 {[%emt 0:01:00]} 4. e4 {[%emt 0:00:07]} d6 {[%emt 0:00:39]} 5. Be2 {[%emt 0:00:17]} O-O {[%emt 0:00:14]} 6. Be3 {[%emt 0:00:18]} c6 {[%emt 0:07:16]} 7. h3 {[%emt 0:08:01]} e5 {[%emt 0:00:41]} 8. d5 {[%emt 0:00:19]} cxd5 {[%emt 0:02:35]} 9. cxd5 {[%emt 0:00:14]} a6 {[%emt 0:00:12]} 10. g4 {[%emt 0:00:44]} b5 {[%emt 0:00:56]} 11. g5 {[%emt 0:01:06]} Nfd7 {[%emt 0:00:16]} 12. Nf3 {[%emt 0:02:01]} f5 {[%emt 0:00:15]} 13. gxf6 {[%emt 0:01:10]} Nxf6 {[%emt 0:00:22]} 14. Ng5 {[%emt 0:00:45]} Qe7 {[%emt 0:01:28]} 15. Qb3 {[%emt 0:00:52]} Nbd7 {[%emt 0:01:59]} 16. Ne6 {[%emt 0:00:54]} Rf7 {[%emt 0:03:30]} 17. a4 {[%emt 0:00:44]} bxa4 {[%emt 0:02:10]} 18. Qxa4 {[%emt 0:01:49]} Rb8 {[%emt 0:01:04]} 19. Qc4 {[%emt 0:11:35]} Qe8 {[%emt 0:08:21]} 20. Qc7 {[%emt 0:03:51]} Rxb2 {[%emt 0:03:31]} 21. Qxd6 {[%emt 0:02:34]} Rc2 {[%emt 0:04:03]} 22. Qa3 {[%emt 0:01:36]} Bf8 {[%emt 0:05:04]} 23. Nxf8 {[%emt 0:00:46]} Qxf8 {[%emt 0:01:34]} 24. Qb3 {[%emt 0:01:16]} Rxc3 {[%emt 0:01:46]} 25. Qxc3 {[%emt 0:00:13]} Nxe4 {[%emt 0:06:02]} 26. Qa3 {[%emt 0:02:06]} Rxf2 {[%emt 0:03:33]} 27. Qxf8+ {[%emt 0:01:01]} Rxf8 {[%emt 0:00:08]} 28. Bxa6 {[%emt 0:01:49]} Ndf6 {[%emt 0:02:27]} 29. Bc4 {[%emt 0:02:38]} Nd6 {[%emt 0:00:43]} 30. Bb3 {[%emt 0:00:25]} Nfe4 {[%emt 0:00:39]} 31. Bh6 {[%emt 0:04:15]} Rd8 {[%emt 0:01:47]} 32. Ra7 {[%emt 0:02:23]} Nf5 {[%emt 0:01:51]} 33. Bc1 {[%emt 0:01:08]} Nd4 {[%emt 0:01:47]} 34. Bc4 {[%emt 0:03:18]} Bf5 {[%emt 0:03:20]} 35. d6+ {[%emt 0:02:56]} Kh8 {[%emt 0:00:26]} 36. Bh6 {[%emt 0:02:32]} Bd7 {[%emt 0:00:15]} 37. O-O {[%emt 0:02:20]} Nf5 {[%emt 0:00:15]} 38. Bd5 {[%emt 0:02:45]} Nxh6 {[%emt 0:04:16]} 39. Bxe4 {[%emt 0:00:14]} Nf5 {[%emt 0:00:47]} 40. Bxf5 {[%emt 0:01:37]} Bxf5 {[%emt 0:03:59]} 41. Rd1 {[%emt 0:30:16]} Bxh3 {[%emt 0:32:25]} 42. Re7 {[%emt 0:00:19]} Kg8 {[%emt 0:07:08]} 43. Kf2 {[%emt 0:01:33]} Bf5 {[%emt 0:01:02]} 44. Rxe5 {[%emt 0:00:47]} h5 {[%emt 0:00:36]} 45. Kg3 {[%emt 0:00:24]} Kf7 {[%emt 0:00:26]} 46. Ra5 {[%emt 0:03:02]} Rd7 {[%emt 0:01:19]} 47. Rc5 {[%emt 0:00:36]} Ke6 {[%emt 0:00:36]} 48. Rc6 {[%emt 0:00:11]} Ke5 {[%emt 0:06:35]} 49. Ra6 {[%emt 0:00:16]} Ke6 {[%emt 0:00:24]} 50. Re1+ {[%emt 0:00:23]} Kd5 {[%emt 0:01:42]} 51. Kf4 {[%emt 0:00:36]} Rd8 {[%emt 0:10:18]} 52. Re5+ {[%emt 0:00:15]} Kd4 {[%emt 0:00:32]} 53. Ra4+ {[%emt 0:00:13]} Kc3 {[%emt 0:00:06]} 54. Re3+ {[%emt 0:00:11]} Kb2 {[%emt 0:00:46]} 55. Rb4+ {[%emt 0:00:13]} Kc2 {[%emt 0:00:28]} 56. Rc4+ {[%emt 0:00:04]} Kb2 {[%emt 0:00:15]} 57. Rd4 {[%emt 0:00:06]} Kc2 {[%emt 0:00:00]} 58. Kg5 {[%emt 0:00:00]} Rd7 {[%emt 0:00:00]} 59. Kf6 {[%emt 0:00:00]} h4 {[%emt 0:00:00]} 60. Re7 {[%emt 0:00:00]} Rd8 {[%emt 0:00:00]} 61. Rc7+ {[%emt 0:00:00]} Kb3 {[%emt 0:00:00]} 62. d7 {[%emt 0:00:00]} h3 {[%emt 0:00:00]} 63. Rd6 {[%emt 0:00:00]} Kb4 {[%emt 0:00:00]} 64. Rb6+ {[%emt 0:00:00]} Ka5 {[%emt 0:00:00]} 65. Rbb7 {[%emt 0:00:00]} h2 {[%emt 0:00:00]} 66. Rc1 {[%emt 0:00:00]} Bxd7 {[%emt 0:00:00]} 67. Ra1+ {[%emt 0:00:00]} Ba4 {[%emt 0:00:00]} 68. Ra7+ {[%emt 0:00:00]} Kb5 {[%emt 0:00:00]} 69. Rb1+ {[%emt 0:00:00]} Kc5 {[%emt 0:00:00]} 70. Rxa4 {[%emt 0:00:00]} Rd2 {[%emt 0:00:00]} 71. Rh1 {[%emt 0:00:00]} Kd6 {[%emt 0:01:39]} 72. Rh4 {[%emt 0:00:00]} 1-0

[Event "10th LCC FIDE Open 2018"]
[Site "London"]
[Date "2018.12.16"]
[Round "9"]
[White "Barrish, Daniel"]
[Black "Seymour, Timothy P"]
[Result "0-1"]
[ECO "E06"]
[WhiteElo "2252"]
[BlackElo "2080"]
[Annotator "NA"]
[PlyCount "86"]
[EventDate "2018.12.09"]
[EventType "swiss"]
[EventCountry "ENG"]
[SourceTitle "playchess.com"]
[Source "ChessBase"]
[SourceQuality "1"]
[TimeControl "40/5400+30:1800+30"]

1. d4 {[%emt 0:20:56]} Nf6 {[%emt 0:00:00]} 2. c4 {[%emt 0:00:03]} e6 {[%emt 0:00:00]} 3. Nf3 {[%emt 0:00:07]} d5 {[%emt 0:00:00]} 4. g3 {[%emt 0:00:06]} Bb4+ {[%emt 0:00:15]} 5. Bd2 {[%emt 0:00:08]} Be7 {[%emt 0:00:04]} 6. Bg2 {[%emt 0:00:03]} O-O {[%emt 0:00:12]} 7. O-O {[%emt 0:00:06]} c6 {[%emt 0:00:09]} 8. Qc2 {[%emt 0:00:06]} b6 {[%emt 0:00:04]} 9. Bf4 {[%emt 0:00:47]} Ba6 {[%emt 0:00:09]} 10. b3 {[%emt 0:01:02]} Nbd7 {[%emt 0:00:13]} 11. Ne5 {[%emt 0:09:58]} Nxe5 {[%emt 0:08:27]} 12. Bxe5 {[%emt 0:02:00]} Rc8 {[%emt 0:01:20]} 13. Rd1 {[%emt 0:02:25]} Qd7 {[%emt 0:22:19]} 14. Nd2 {[%emt 0:03:35]} Ng4 {[%emt 0:02:31]} 15. Bf4 {[%emt 0:07:58]} g5 {[%emt 0:02:16]} 16. Bf3 {[%emt 0:05:04]} Nxf2 {[%emt 0:14:32]} 17. Kxf2 {[%emt 0:00:07]} gxf4 {[%emt 0:00:06]} 18. gxf4 {[%emt 0:00:16]} Kh8 {[%emt 0:02:26]} 19. Kg2 {[%emt 0:02:30]} Bf6 {[%emt 0:05:11]} 20. Qd3 {[%emt 0:02:09]} c5 {[%emt 0:06:41]} 21. e3 {[%emt 0:02:39]} Rfd8 {[%emt 0:05:27]} 22. Rac1 {[%emt 0:01:30]} cxd4 {[%emt 0:03:42]} 23. exd4 {[%emt 0:00:06]} dxc4 {[%emt 0:00:22]} 24. Nxc4 {[%emt 0:00:14]} Qxd4 {[%emt 0:02:21]} 25. Qxd4 {[%emt 0:00:29]} Bxd4 {[%emt 0:05:09]} 26. Ne5 {[%emt 0:05:02]} Bxe5 {[%emt 0:02:39]} 27. fxe5 {[%emt 0:00:05]} Rxd1 {[%emt 0:01:43]} 28. Rxd1 {[%emt 0:00:31]} Bb5 {[%emt 0:00:56]} 29. a4 {[%emt 0:00:52]} Rc2+ {[%emt 0:02:06]} 30. Kg3 {[%emt 0:00:33]} Bc6 {[%emt 0:01:58]} 31. Bxc6 {[%emt 0:07:48]} Rxc6 {[%emt 0:00:03]} 32. Rd7 {[%emt 0:02:43]} Kg7 {[%emt 0:00:42]} 33. Rxa7 {[%emt 0:00:17]} Rc3+ {[%emt 0:00:24]} 34. Kf4 {[%emt 0:00:19]} Rxb3 {[%emt 0:00:08]} 35. a5 {[%emt 0:00:31]} bxa5 {[%emt 0:01:46]} 36. Rxa5 {[%emt 0:00:17]} Kg6 {[%emt 0:02:12]} 37. Ra2 {[%emt 0:12:53]} Rb4+ {[%emt 0:00:12]} 38. Kf3 {[%emt 0:00:13]} Kf5 {[%emt 0:01:45]} 39. Ra7 {[%emt 0:00:52]} Rb3+ {[%emt 0:02:59]} 40. Kg2 {[%emt 0:00:20]} Kg6 {[%emt 0:00:51]} 41. Ra8 {[%emt 0:32:33]} Rb5 {[%emt 0:30:55]} 42. Rg8+ {[%emt 0:00:09]} Kh6 {[%emt 0:00:21]} 43. Rf8 {[%emt 0:00:41]} Kg7 {[%emt 0:00:12]} 0-1

[Event "10th LCC FIDE Open 2018"]
[Site "London"]
[Date "2018.12.16"]
[Round "9"]
[White "Roe, Simon J"]
[Black "Bin-Suhayl, Ieysaa"]
[Result "0-1"]
[ECO "A31"]
[WhiteElo "2223"]
[BlackElo "2038"]
[Annotator "NA"]
[PlyCount "108"]
[EventDate "2018.12.09"]
[EventType "swiss"]
[EventCountry "ENG"]
[SourceTitle "playchess.com"]
[Source "ChessBase"]
[SourceQuality "1"]
[TimeControl "40/5400+30:1800+30"]

1. Nf3 {[%emt 0:00:02]} Nf6 {[%emt 0:00:00]} 2. c4 {[%emt 0:00:10]} c5 {[%emt 0:00:00]} 3. g3 {[%emt 0:00:12]} Nc6 {[%emt 0:00:04]} 4. Bg2 {[%emt 0:00:14]} d6 {[%emt 0:00:04]} 5. Nc3 {[%emt 0:02:53]} g6 {[%emt 0:00:04]} 6. d4 {[%emt 0:03:46]} cxd4 {[%emt 0:00:05]} 7. Nxd4 {[%emt 0:00:04]} Bd7 {[%emt 0:00:04]} 8. Nc2 {[%emt 0:00:11]} Bg7 {[%emt 0:00:09]} 9. Bd2 {[%emt 0:02:13]} O-O {[%emt 0:08:52]} 10. Rc1 {[%emt 0:02:24]} Rb8 {[%emt 0:05:13]} 11. Ne3 {[%emt 0:08:56]} Ne5 {[%emt 0:06:37]} 12. b3 {[%emt 0:06:34]} a6 {[%emt 0:01:36]} 13. a4 {[%emt 0:08:39]} Bc6 {[%emt 0:24:18]} 14. Ncd5 {[%emt 0:15:39]} e6 {[%emt 0:01:02]} 15. Nxf6+ {[%emt 0:00:13]} Bxf6 {[%emt 0:03:08]} 16. O-O {[%emt 0:06:02]} Bxg2 {[%emt 0:28:58]} 17. Kxg2 {[%emt 0:01:32]} a5 {[%emt 0:00:17]} 18. Bc3 {[%emt 0:03:25]} Qb6 {[%emt 0:00:24]} 19. Qc2 {[%emt 0:05:56]} Bg7 {[%emt 0:02:11]} 20. Qb2 {[%emt 0:03:53]} Rfd8 {[%emt 0:01:58]} 21. Bd4 {[%emt 0:02:14]} Qc6+ {[%emt 0:00:22]} 22. Kg1 {[%emt 0:00:44]} f6 {[%emt 0:02:38]} 23. Ng2 {[%emt 0:05:58]} Qc7 {[%emt 0:04:22]} 24. Nf4 {[%emt 0:01:44]} Kf7 {[%emt 0:00:03]} 25. Rfd1 {[%emt 0:01:45]} Bf8 {[%emt 0:01:19]} 26. Qc3 {[%emt 0:03:55]} Be7 {[%emt 0:00:37]} 27. Qe3 {[%emt 0:00:38]} b6 {[%emt 0:00:40]} 28. Rc3 {[%emt 0:04:44]} g5 {[%emt 0:01:16]} 29. Bxe5 {[%emt 0:01:07]} dxe5 {[%emt 0:00:27]} 30. Nd3 {[%emt 0:00:26]} Rd4 {[%emt 0:01:40]} 31. Rcc1 {[%emt 0:02:27]} Rbd8 {[%emt 0:00:43]} 32. Qf3 {[%emt 0:04:42]} e4 {[%emt 0:00:38]} 33. Qh5+ {[%emt 0:00:05]} Kg7 {[%emt 0:00:03]} 34. Nb2 {[%emt 0:00:11]} Rd2 {[%emt 0:00:19]} 35. Rxd2 {[%emt 0:01:16]} Rxd2 {[%emt 0:00:02]} 36. Rd1 {[%emt 0:00:05]} e3 {[%emt 0:04:22]} 37. Rxd2 {[%emt 0:00:53]} exd2 {[%emt 0:00:03]} 38. e3 {[%emt 0:01:03]} Qd7 {[%emt 0:03:09]} 39. Qe2 {[%emt 0:01:14]} Bb4 {[%emt 0:00:53]} 40. g4 {[%emt 0:01:08]} e5 {[%emt 0:00:46]} 41. e4 {[%emt 0:03:03]} Qd4 {[%emt 0:06:23]} 42. Nd1 {[%emt 0:02:19]} Qa1 {[%emt 0:00:54]} 43. Kg2 {[%emt 0:00:50]} Qb1 {[%emt 0:00:54]} 44. Qf3 {[%emt 0:02:13]} Qc2 {[%emt 0:02:56]} 45. Kg3 {[%emt 0:06:24]} Be7 {[%emt 0:02:54]} 46. h3 {[%emt 0:01:57]} Kf8 {[%emt 0:01:05]} 47. Kg2 {[%emt 0:01:54]} Ke8 {[%emt 0:00:59]} 48. Kf1 {[%emt 0:01:19]} Kd7 {[%emt 0:10:46]} 49. Ke2 {[%emt 0:00:43]} Ke8 {[%emt 0:02:35]} 50. Qd3 {[%emt 0:02:21]} Qa2 {[%emt 0:00:06]} 51. Ne3 {[%emt 0:07:42]} Bb4 {[%emt 0:01:10]} 52. Nd5 {[%emt 0:03:25]} Qa1 {[%emt 0:00:25]} 53. Nc7+ {[%emt 0:01:18]} Ke7 {[%emt 0:00:34]} 54. Nd5+ {[%emt 0:01:22]} Kf7 {[%emt 0:00:06]} 0-1

[Event "10th LCC FIDE Open 2018"]
[Site "London"]
[Date "2018.12.16"]
[Round "9"]
[White "Signorelli, Gaetano"]
[Black "Head, Louise"]
[Result "1-0"]
[ECO "B12"]
[WhiteElo "2222"]
[BlackElo "2079"]
[Annotator "NA"]
[PlyCount "109"]
[EventDate "2018.12.09"]
[EventType "swiss"]
[EventCountry "ENG"]
[SourceTitle "playchess.com"]
[Source "ChessBase"]
[SourceQuality "1"]
[TimeControl "40/5400+30:1800+30"]

1. e4 {[%emt 0:00:00]} c6 {[%emt 0:00:00]} 2. d4 {[%emt 0:00:00]} d5 {[%emt 0:00:00]} 3. f3 {[%emt 0:00:39]} e6 {[%emt 0:00:19]} 4. Nc3 {[%emt 0:00:31]} Bb4 {[%emt 0:00:26]} 5. Bf4 {[%emt 0:00:55]} Ne7 {[%emt 0:00:55]} 6. Qd3 {[%emt 0:00:39]} Nd7 {[%emt 0:07:13]} 7. O-O-O {[%emt 0:04:25]} Nb6 {[%emt 0:05:57]} 8. Qe3 {[%emt 0:10:55]} a5 {[%emt 0:11:13]} 9. h4 {[%emt 0:08:18]} Nc4 {[%emt 0:28:02]} 10. Bxc4 {[%emt 0:02:52]} dxc4 {[%emt 0:00:09]} 11. d5 {[%emt 0:12:23]} cxd5 {[%emt 0:03:30]} 12. Nb5 {[%emt 0:05:03]} O-O {[%emt 0:07:55]} 13. a3 {[%emt 0:04:23]} d4 {[%emt 0:07:32]} 14. Qxd4 {[%emt 0:04:14]} Qxd4 {[%emt 0:00:43]} 15. Rxd4 {[%emt 0:00:14]} e5 {[%emt 0:08:37]} 16. Bxe5 {[%emt 0:07:33]} Nc6 {[%emt 0:00:29]} 17. axb4 {[%emt 0:01:44]} Nxe5 {[%emt 0:04:09]} 18. Nc7 {[%emt 0:00:45]} Ra7 {[%emt 0:00:48]} 19. b5 {[%emt 0:02:48]} b6 {[%emt 0:01:21]} 20. Nd5 {[%emt 0:00:24]} Bd7 {[%emt 0:02:07]} 21. Nxb6 {[%emt 0:01:31]} Bxb5 {[%emt 0:01:56]} 22. Rd5 {[%emt 0:00:20]} Nd7 {[%emt 0:00:04]} 23. Rxb5 {[%emt 0:01:30]} Rb8 {[%emt 0:00:14]} 24. Ne2 {[%emt 0:01:04]} Rxb6 {[%emt 0:01:09]} 25. Rxb6 {[%emt 0:00:13]} Nxb6 {[%emt 0:00:04]} 26. Rd1 {[%emt 0:00:14]} g6 {[%emt 0:00:24]} 27. Rd6 {[%emt 0:03:58]} Na4 {[%emt 0:04:48]} 28. Rd8+ {[%emt 0:04:25]} Kg7 {[%emt 0:00:14]} 29. Rb8 {[%emt 0:00:08]} Ra6 {[%emt 0:01:18]} 30. Rb5 {[%emt 0:00:49]} Nb6 {[%emt 0:00:38]} 31. Nc3 {[%emt 0:02:58]} Nd7 {[%emt 0:01:19]} 32. Kd2 {[%emt 0:02:25]} a4 {[%emt 0:01:02]} 33. Rb4 {[%emt 0:00:32]} a3 {[%emt 0:00:24]} 34. bxa3 {[%emt 0:00:09]} Rxa3 {[%emt 0:00:10]} 35. Rxc4 {[%emt 0:00:13]} Nf6 {[%emt 0:00:49]} 36. Ra4 {[%emt 0:00:30]} Rxa4 {[%emt 0:00:19]} 37. Nxa4 {[%emt 0:00:06]} Nh5 {[%emt 0:01:24]} 38. g4 {[%emt 0:04:08]} Nf4 {[%emt 0:00:34]} 39. Ke3 {[%emt 0:02:54]} Ng2+ {[%emt 0:00:12]} 40. Kf2 {[%emt 0:00:44]} Nxh4 {[%emt 0:00:29]} 41. f4 {[%emt 0:30:49]} g5 {[%emt 0:06:18]} 42. f5 {[%emt 0:00:00]} h5 {[%emt 0:08:04]} 43. gxh5 {[%emt 0:00:00]} g4 {[%emt 0:00:53]} 44. Kg3 {[%emt 0:00:00]} Nf3 {[%emt 0:00:11]} 45. Kxg4 {[%emt 0:00:00]} Ne5+ {[%emt 0:00:09]} 46. Kf4 {[%emt 0:00:00]} f6 {[%emt 0:00:40]} 47. Nc5 {[%emt 0:00:00]} Kh6 {[%emt 0:01:19]} 48. Nd3 {[%emt 0:00:00]} Nf7 {[%emt 0:05:26]} 49. Nf2 {[%emt 0:00:00]} Kg7 {[%emt 0:03:25]} 50. Ng4 {[%emt 0:00:00]} Nd6 {[%emt 0:00:04]} 51. Nxf6 {[%emt 0:00:00]} Nb5 {[%emt 0:01:09]} 52. e5 {[%emt 0:00:00]} Nd4 {[%emt 0:00:19]} 53. c4 {[%emt 0:00:00]} Nb3 {[%emt 0:00:21]} 54. Ke4 {[%emt 0:00:00]} Kh6 {[%emt 0:00:22]} 55. Nd7 {[%emt 0:00:00]} 1-0

[Event "10th LCC FIDE Open 2018"]
[Site "London"]
[Date "2018.12.16"]
[Round "9"]
[White "Hill, Alistair"]
[Black "Price, Gwilym"]
[Result "1/2-1/2"]
[ECO "B45"]
[WhiteElo "2219"]
[BlackElo "2075"]
[Annotator "NA"]
[PlyCount "74"]
[EventDate "2018.12.09"]
[EventType "swiss"]
[EventCountry "ENG"]
[SourceTitle "playchess.com"]
[Source "ChessBase"]
[SourceQuality "1"]
[TimeControl "40/5400+30:1800+30"]

1. e4 {[%emt 0:16:04]} c5 {[%emt 0:00:00]} 2. Nf3 {[%emt 0:00:05]} e6 {[%emt 0:00:00]} 3. d4 {[%emt 0:00:06]} cxd4 {[%emt 0:00:00]} 4. Nxd4 {[%emt 0:00:04]} Nf6 {[%emt 0:00:00]} 5. Nc3 {[%emt 0:00:06]} Nc6 {[%emt 0:00:01]} 6. Nxc6 {[%emt 0:00:06]} bxc6 {[%emt 0:00:03]} 7. e5 {[%emt 0:00:08]} Nd5 {[%emt 0:00:06]} 8. Ne4 {[%emt 0:00:06]} Qc7 {[%emt 0:00:13]} 9. f4 {[%emt 0:00:07]} Qb6 {[%emt 0:00:02]} 10. c4 {[%emt 0:00:20]} Bb4+ {[%emt 0:00:01]} 11. Ke2 {[%emt 0:01:12]} f5 {[%emt 0:00:04]} 12. exf6 {[%emt 0:04:55]} Nxf6 {[%emt 0:00:06]} 13. Be3 {[%emt 0:00:41]} Qa5 {[%emt 0:07:20]} 14. Nd6+ {[%emt 0:10:50]} Bxd6 {[%emt 0:01:34]} 15. Qxd6 {[%emt 0:00:02]} Kf7 {[%emt 0:05:00]} 16. Qc5 {[%emt 0:11:53]} Qc7 {[%emt 0:02:10]} 17. Rd1 {[%emt 0:05:46]} d5 {[%emt 0:04:52]} 18. Ke1 {[%emt 0:05:03]} Re8 {[%emt 0:05:20]} 19. Be2 {[%emt 0:05:24]} Ba6 {[%emt 0:03:22]} 20. cxd5 {[%emt 0:07:18]} exd5 {[%emt 0:00:23]} 21. Bxa6 {[%emt 0:00:29]} Qxf4 {[%emt 0:00:15]} 22. Rd3 {[%emt 0:03:05]} d4 {[%emt 0:03:57]} 23. Qxd4 {[%emt 0:08:33]} Rxe3+ {[%emt 0:01:38]} 24. Kd1 {[%emt 0:02:50]} Rxd3+ {[%emt 0:04:20]} 25. Qxd3 {[%emt 0:00:02]} Qc7 {[%emt 0:22:15]} 26. Bc4+ {[%emt 0:04:29]} Kf8 {[%emt 0:00:18]} 27. Qa3+ {[%emt 0:01:53]} Qe7 {[%emt 0:02:43]} 28. Qxe7+ {[%emt 0:00:18]} Kxe7 {[%emt 0:00:08]} 29. Kc2 {[%emt 0:00:16]} Kd6 {[%emt 0:00:46]} 30. Re1 {[%emt 0:01:11]} Nd5 {[%emt 0:00:43]} 31. Bxd5 {[%emt 0:02:20]} cxd5 {[%emt 0:00:07]} 32. Rf1 {[%emt 0:00:57]} Rc8+ {[%emt 0:01:43]} 33. Kd2 {[%emt 0:00:51]} Rc7 {[%emt 0:00:31]} 34. Rf3 {[%emt 0:00:02]} Ke5 {[%emt 0:00:54]} 35. Ra3 {[%emt 0:00:02]} Ke4 {[%emt 0:00:53]} 36. Re3+ {[%emt 0:01:52]} Kd4 {[%emt 0:01:25]} 37. Rd3+ {[%emt 0:00:05]} Ke5 {[%emt 0:00:25]} 1/2-1/2

[Event "10th LCC FIDE Open 2018"]
[Site "London"]
[Date "2018.12.16"]
[Round "9"]
[White "Stoyanov, Viktor"]
[Black "Bhawoodien, Mohamed Ozayr"]
[Result "0-1"]
[ECO "A45"]
[WhiteElo "2205"]
[BlackElo "2123"]
[Annotator "NA"]
[PlyCount "110"]
[EventDate "2018.12.09"]
[EventType "swiss"]
[EventCountry "ENG"]
[SourceTitle "playchess.com"]
[Source "ChessBase"]
[SourceQuality "1"]
[TimeControl "40/5400+30:1800+30"]

1. d4 {[%emt 0:00:00]} Nf6 {[%emt 0:20:07]} 2. Bf4 {[%emt 0:00:00]} g6 {[%emt 0:00:15]} 3. Nc3 {[%emt 0:00:00]} d5 {[%emt 0:00:26]} 4. e3 {[%emt 0:00:05]} Bg7 {[%emt 0:00:41]} 5. h4 {[%emt 0:00:04]} h5 {[%emt 0:00:46]} 6. Nf3 {[%emt 0:00:13]} O-O {[%emt 0:01:07]} 7. Be2 {[%emt 0:00:15]} Bg4 {[%emt 0:02:32]} 8. Ne5 {[%emt 0:01:33]} Bxe2 {[%emt 0:00:39]} 9. Qxe2 {[%emt 0:00:05]} Nbd7 {[%emt 0:08:19]} 10. O-O-O {[%emt 0:00:17]} c5 {[%emt 0:02:48]} 11. Qb5 {[%emt 0:07:50]} cxd4 {[%emt 0:06:06]} 12. exd4 {[%emt 0:06:01]} Nb6 {[%emt 0:01:25]} 13. Rhe1 {[%emt 0:00:23]} Rc8 {[%emt 0:01:54]} 14. f3 {[%emt 0:04:15]} Re8 {[%emt 0:11:24]} 15. Re2 {[%emt 0:03:15]} e6 {[%emt 0:04:56]} 16. a4 {[%emt 0:02:31]} Re7 {[%emt 0:04:39]} 17. Qb3 {[%emt 0:04:44]} Nc4 {[%emt 0:00:59]} 18. Nb5 {[%emt 0:01:48]} a6 {[%emt 0:01:29]} 19. Na3 {[%emt 0:00:42]} b5 {[%emt 0:00:25]} 20. Nd3 {[%emt 0:05:06]} Qa5 {[%emt 0:04:13]} 21. axb5 {[%emt 0:03:06]} Nxa3 {[%emt 0:01:28]} 22. Qxa3 {[%emt 0:01:38]} Qxa3 {[%emt 0:00:21]} 23. bxa3 {[%emt 0:00:04]} axb5 {[%emt 0:00:09]} 24. Nc5 {[%emt 0:02:52]} Ra7 {[%emt 0:00:17]} 25. Re3 {[%emt 0:00:28]} Bf8 {[%emt 0:00:36]} 26. Be5 {[%emt 0:01:03]} Bh6 {[%emt 0:01:53]} 27. Bxf6 {[%emt 0:03:08]} Bxe3+ {[%emt 0:00:10]} 28. Kb2 {[%emt 0:00:06]} Bh6 {[%emt 0:01:04]} 29. Rd3 {[%emt 0:00:27]} Bf8 {[%emt 0:01:14]} 30. Rc3 {[%emt 0:00:37]} Bd6 {[%emt 0:03:03]} 31. Kb3 {[%emt 0:00:51]} Rac7 {[%emt 0:00:13]} 32. Kb4 {[%emt 0:00:28]} e5 {[%emt 0:04:38]} 33. Kxb5 {[%emt 0:01:33]} Rb8+ {[%emt 0:00:44]} 34. Ka6 {[%emt 0:00:09]} Rc6+ {[%emt 0:02:30]} 35. Ka7 {[%emt 0:00:09]} Rb5 {[%emt 0:01:30]} 36. a4 {[%emt 0:01:32]} Bxc5+ {[%emt 0:01:56]} 37. dxc5 {[%emt 0:01:23]} Rbxc5 {[%emt 0:07:11]} 38. Rxc5 {[%emt 0:00:17]} Rxc5 {[%emt 0:00:05]} 39. Kb6 {[%emt 0:00:08]} Rxc2 {[%emt 0:00:29]} 40. Bxe5 {[%emt 0:00:08]} Re2 {[%emt 0:02:11]} 41. Bd4 {[%emt 0:30:46]} Rd2 {[%emt 0:04:13]} 42. Kc5 {[%emt 0:00:00]} Ra2 {[%emt 0:01:13]} 43. Kb5 {[%emt 0:00:00]} Rxg2 {[%emt 0:08:34]} 44. a5 {[%emt 0:00:00]} g5 {[%emt 0:00:14]} 45. hxg5 {[%emt 0:00:00]} h4 {[%emt 0:00:42]} 46. a6 {[%emt 0:00:00]} Ra2 {[%emt 0:01:59]} 47. Be5 {[%emt 0:00:00]} h3 {[%emt 0:00:26]} 48. Kb6 {[%emt 0:00:00]} h2 {[%emt 0:01:22]} 49. Bxh2 {[%emt 0:00:00]} Rxh2 {[%emt 0:00:05]} 50. Kc5 {[%emt 0:00:00]} Ra2 {[%emt 0:00:05]} 51. Kxd5 {[%emt 0:00:00]} Rxa6 {[%emt 0:00:04]} 52. Ke5 {[%emt 0:00:00]} Kg7 {[%emt 0:00:06]} 53. Kf5 {[%emt 0:00:00]} Ra5+ {[%emt 0:00:03]} 54. Kg4 {[%emt 0:00:00]} Kg6 {[%emt 0:00:10]} 55. f4 {[%emt 0:00:00]} Ra4 {[%emt 0:00:09]} 0-1